lending/lending_fUSD_20240130
["ID","MTS","AMOUNT","RATE_DAILY","PERIOD"]
[312996679,1706573440291,-150.0,0.00032096,2]
[312996680,1706573440300,-151.19045389,0.00032122,2]
[312996681,1706573440309,-2505.0,0.000322,2]
[312996682,1706573440318,-4433.0,0.000322,2]
[312996683,1706573440327,-176.69,0.00032248,2]
[312996684,1706573440337,-500.0,0.00032248,2]
[312996685,1706573440346,-510.11,0.000323,2]
[312996686,1706573440355,-1000.0,0.00032306,2]
[312996687,1706573440364,-172.47,0.00032329,2]
[312996688,1706573440374,-210.51,0.00032447,2]
[312996689,1706573440383,-161.63385363,0.000325,2]
[312996690,1706573440392,-510.11,0.00032588,2]
[312996691,1706573440401,-150.0,0.00032644,2]
[312996692,1706573440410,-808.83845917,0.00032677,2]
[312996693,1706573440419,-5211.2904,0.0003268,2]
[312996694,1706573440430,-39338.543,0.0003268,2]
[312996695,1706573440439,-100000.0,0.0003268,2]
[312996696,1706573440449,-1000.0,0.0003268,2]
[312996697,1706573440458,-728.51083506,0.00032696,21]
[312996698,1706573440468,-181022.77947861,0.0003278,5]
[312996699,1706573440477,-176.69,0.00032796,2]
[312996700,1706573440486,-500.0,0.00032796,2]
[312996701,1706573440495,-14409.60136025,0.00032797,4]
[312996702,1706573440504,-150.0,0.00032799,2]
[312996703,1706573440514,-150.0,0.00032799,2]
[312996704,1706573440524,-730104.36828584,0.000328,2]
[312996705,1706573440533,-3000.0,0.0003284,2]
[312996706,1706573440542,-510.11,0.00032877,2]
[312996707,1706573440551,-152.45,0.00032877,2]
[312996708,1706573440560,-500.0,0.00032877,2]
[312996709,1706573440569,-186.52,0.00032877,2]
[312996710,1706573440579,-500.0,0.00032877,2]
[312996711,1706573440588,-150.0,0.0003307,20]
[312996712,1706573440598,-2937.56396032,0.00033105,5]
[312996713,1706573440607,-150.0,0.00033192,2]
[312996714,1706573440616,-176.69,0.00033344,2]
[312996715,1706573440625,-500.0,0.00033344,2]
[312996716,1706573440635,-193.12631424,0.000334,4]
[312996717,1706573440644,-1454.05,0.00033425,2]
[312996718,1706573440653,-151.19045389,0.00033439,2]
[312996719,1706573440662,-374.14669274,0.00033658,7]
[312996720,1706573440672,-2267.5871934,0.00033658,6]
[312996721,1706573440684,-226.75871933,0.00033658,6]
[312996722,1706573440693,-744.43267165,0.00033701,2]
[312996723,1706573440701,-286.89393575,0.0003374,2]
[312996724,1706573440710,-150.0,0.0003374,2]
[312996725,1706573440898,-176.69,0.00033892,2]
[312996726,1706573440908,-500.0,0.00033892,2]
[312996727,1706573440917,-635.999751,0.00034,4]
[312996728,1706573440929,-3000.0,0.0003409,2]
[312996729,1706573440939,-165.79,0.00034242,2]
[312996730,1706573440951,-150.0,0.00034288,2]
[312996731,1706573440961,-2654.92,0.0003442,2]
[312996732,1706573440971,-150.0,0.0003444,20]
[312996733,1706573440981,-176.69,0.0003444,2]
[312996734,1706573440992,-596.8590253,0.0003444,2]
[312996735,1706573441002,-172.47,0.00034521,2]
[312996736,1706573441012,-151.19045389,0.00034757,2]
[312996737,1706573441025,-240.14077159,0.00034836,2]
[312996738,1706573441035,-956.06993482,0.00034895,7]
[312996739,1706573441046,-4191.32454578,0.000349,2]
[312996740,1706573441056,-1420.95729654,0.000349,4]
[312996741,1706573441066,-2809.48376728,0.000349,2]
[312996742,1706573441077,-2809.48376728,0.000349,2]
[312996743,1706573441087,-2809.48376728,0.000349,2]
[312996744,1706573441097,-2809.48376728,0.000349,2]
[312996745,1706573441107,-2809.48376728,0.000349,2]
[312996746,1706573441117,-2809.48376728,0.000349,2]
[312996747,1706573441127,-2809.48376728,0.000349,2]
[312996748,1706573441137,-2809.48376728,0.000349,2]
[312996749,1706573441147,-176.69,0.00034988,2]
[312996750,1706573441158,-808.83845917,0.00034997,2]
[312996751,1706573441169,-5000.0,0.00035,7]
[312996752,1706573441183,-1506.68620195,0.00035,2]
[312996753,1706573441193,-1000.0,0.00035,4]
[312996754,1706573441204,-155.0,0.00035,2]
[312996755,1706573441215,-12452.13976298,0.00035,7]
[312996756,1706573441224,-227.56817358,0.00035,7]
[312996757,1706573441235,-91843.54759668,0.00035,2]
[312996758,1706573441245,-3000.0,0.00035,2]
[312996759,1706573441254,-192.04810722,0.00035,2]
[312996760,1706573441264,-300.6742833,0.00035,2]
[312996761,1706573441273,-150.1,0.00035,2]
[312996762,1706573441283,-19910.09803071,0.00035,2]
[312996763,1706573441293,-3000.0,0.0003534,2]
[312996764,1706573441302,-153.35,0.000355,3]
[312996765,1706573441311,-1467.15,0.000355,3]
[312996766,1706573441320,-1467.15,0.000355,3]
[312996767,1706573441330,-1467.15,0.000355,3]
[312996768,1706573441340,-1467.15,0.000355,3]
[312996769,1706573441349,-1467.15,0.000355,3]
[312996770,1706573441358,-1467.15,0.000355,3]
[312996771,1706573441367,-1467.15,0.000355,3]
[312996772,1706573441376,-1467.15,0.000355,3]
[312996773,1706573441386,-1467.15,0.000355,3]
[312996774,1706573441396,-1467.15,0.000355,3]
[312996775,1706573441405,-1467.15,0.000355,3]
[312996776,1706573441414,-1467.15,0.000355,3]
[312996777,1706573441423,-1467.15,0.000355,3]
[312996778,1706573441437,-1467.15,0.000355,3]
[312996779,1706573441446,-1467.15,0.000355,3]
[312996780,1706573441455,-1467.15,0.000355,3]
[312996781,1706573441464,-1467.15,0.000355,3]
[312996782,1706573441473,-1467.15,0.000355,3]
[312996783,1706573441482,-1467.15,0.000355,3]
[312996784,1706573441491,-1467.15,0.000355,3]
[312996785,1706573441500,-2809.48376728,0.00035532,2]
[312996786,1706573441510,-176.69,0.00035536,2]
[312996787,1706573441519,-200.0,0.00035616,2]
[312996788,1706573441528,-1073.7,0.00035616,2]
[312996789,1706573441538,-2937.56396032,0.00035657,8]
[312996790,1706573441547,-1454.05,0.00035689,2]
[312996791,1706573441556,-177.7009319,0.0003581,20]
[312996792,1706573441565,-151.19045389,0.00036074,2]
[312996793,1706573441574,-176.69,0.00036084,2]
[312996794,1706573441584,-176.69,0.00036632,2]
[312996795,1706573441593,-172.47,0.00036712,2]
[312996796,1706573441603,-355.61932272,0.00037,4]
[312996797,1706573441612,-3427.48760427,0.00037,5]
[312996798,1706573441620,-2809.48376728,0.00037111,2]
[312996799,1706573441630,-176.69,0.0003718,2]
[312996800,1706573441639,-728.51083504,0.00037244,27]
[312996801,1706573441648,-151.19045389,0.00037391,2]
[312996802,1706573441657,-165.79,0.00037666,2]
[312996803,1706573441666,-11947.36971921,0.00037699,2]
[312996804,1706573441674,-165.03648676,0.00037701,5]
[312996805,1706573441685,-176.69,0.00037728,2]
[312996806,1706573441694,-150.0,0.00037899,2]
[312996807,1706573441703,-150.0,0.00037899,2]
[312996808,1706573441712,-215.0,0.000379,2]
[312996809,1706573441721,-673545.404414,0.000379,3]
[312996810,1706573441730,-1454.05,0.00037952,2]
[312996811,1706573441740,-2937.56396032,0.00038208,11]
[312996812,1706573441748,-176.69,0.00038276,2]
[312996813,1706573441758,-200.0,0.00038356,2]
[312996814,1706573441770,-1617.81,0.0003844,2]
[312996815,1706573441780,-6421.48552714,0.000385,7]
[312996816,1706573441789,-561.26,0.000385,3]
[312996817,1706573441798,-245000.0,0.000386,2]
[312996818,1706573441808,-500.0,0.000386,2]
[312996819,1706573441817,-2809.48376728,0.00038689,2]
[312996820,1706573441825,-151.19045389,0.00038709,2]
[312996821,1706573441834,-9234.31949774,0.000388,2]
[312996822,1706573441843,-9234.31949774,0.000388,2]
[312996823,1706573441853,-9234.31949774,0.000388,2]
[312996824,1706573441862,-9234.31949774,0.000388,2]
[312996825,1706573441870,-9234.31949774,0.000388,2]
[312996826,1706573441879,-9234.31949774,0.000388,2]
[312996827,1706573441888,-9234.31949774,0.000388,2]
[312996828,1706573441897,-9234.31949774,0.000388,2]
[312996829,1706573441906,-9234.31949774,0.000388,2]
[312996830,1706573441915,-9234.31949774,0.000388,2]
[312996831,1706573441924,-9234.31949774,0.000388,2]
[312996832,1706573441935,-176.69,0.00038824,2]
[312996833,1706573441943,-808.83845917,0.00038877,2]
[312996834,1706573441955,-5446.46652633,0.0003888,2]
[312996835,1706573441964,-5446.46652624,0.0003888,2]
[312996836,1706573441974,-5446.46652624,0.0003888,2]
[312996837,1706573441983,-5446.46652624,0.0003888,2]
[312996838,1706573441992,-5446.46652624,0.0003888,2]
[312996839,1706573442001,-956.06993482,0.00038893,9]
[312996840,1706573442010,-172.47,0.00038904,2]
[312996841,1706573442020,-403.72583205,0.0003898,2]
[312996842,1706573442029,-2045.3358919,0.00039,2]
[312996843,1706573442040,-621.60218478,0.00039,4]
[312996844,1706573442050,-978.30213314,0.00039,4]
[312996845,1706573442060,-150.0,0.00039243,2]
[312996846,1706573442070,-150.0,0.00039243,2]
[312996847,1706573442079,-5446.46652624,0.00039244,2]
[312996848,1706573442088,-176.69,0.00039372,2]
[312996849,1706573442097,-350.00012539,0.000399,4]
[312996850,1706573442106,-176.69,0.0003992,2]
[312996851,1706573442118,-287.68,0.00039989,10]
[312996852,1706573442129,-239.74,0.00039989,10]
[312996853,1706573442138,-199.78,0.00039989,10]
[312996854,1706573442148,-500.0,0.00039999,31]
[312996855,1706573442157,-636.18942555,0.00039999,31]
[312996856,1706573442167,-500.0,0.00039999,31]
[312996857,1706573442178,-354.3910701,0.00039999,31]
[312996858,1706573442187,-500.0,0.00039999,31]
[312996859,1706573442196,-469.81217105,0.00039999,31]
[312996860,1706573442205,-580.14216218,0.00039999,31]
[312996861,1706573442214,-500.0,0.00039999,31]
[312996862,1706573442223,-500.0,0.00039999,31]
[312996863,1706573442231,-500.0,0.00039999,31]
[312996864,1706573442241,-500.0,0.00039999,31]
[312996865,1706573442250,-500.0,0.00039999,31]
[312996866,1706573442259,-500.0,0.00039999,31]
[312996867,1706573442268,-500.0,0.00039999,31]
[312996868,1706573442279,-500.0,0.00039999,31]
[312996869,1706573442288,-500.0,0.00039999,31]
[312996870,1706573442297,-500.0,0.00039999,31]
[312996871,1706573442306,-500.0,0.00039999,31]
[312996872,1706573442326,-500.0,0.00039999,31]
[312996873,1706573442337,-500.0,0.00039999,31]
[312996874,1706573442347,-539.75660322,0.00039999,31]
[312996875,1706573442357,-597.72990314,0.00039999,31]
[312996876,1706573442367,-500.0,0.00039999,31]
[312996877,1706573442377,-500.0,0.00039999,31]
[312996878,1706573442386,-500.0,0.00039999,31]
[312996879,1706573442396,-500.0,0.00039999,31]
[312996880,1706573442405,-500.0,0.00039999,31]
[312996881,1706573442417,-500.0,0.00039999,31]
[312996882,1706573442428,-500.0,0.00039999,31]
[312996883,1706573442437,-500.0,0.00039999,31]
[312996884,1706573442447,-500.0,0.00039999,31]
[312996885,1706573442457,-500.0,0.00039999,31]
[312996886,1706573442466,-500.0,0.00039999,31]
[312996887,1706573442475,-193.57693002,0.00039999,31]
[312996888,1706573442485,-500.0,0.00039999,31]
[312996889,1706573442494,-500.0,0.00039999,31]
[312996890,1706573442503,-500.0,0.00039999,31]
[312996891,1706573442513,-500.0,0.00039999,31]
[312996892,1706573442522,-500.0,0.00039999,31]
[312996893,1706573442532,-500.0,0.00039999,31]
[312996894,1706573442542,-500.0,0.00039999,31]
[312996895,1706573442551,-161.29100135,0.00039999,31]
[312996896,1706573442561,-500.0,0.00039999,31]
[312996897,1706573442570,-500.0,0.00039999,31]
[312996898,1706573442580,-500.0,0.00039999,31]
[312996899,1706573442589,-500.0,0.00039999,31]
[312996900,1706573442598,-500.0,0.00039999,31]
[312996901,1706573442608,-500.0,0.00039999,31]
[312996902,1706573442619,-500.0,0.00039999,31]
[312996903,1706573442628,-500.0,0.00039999,31]
[312996904,1706573442637,-500.0,0.00039999,31]
[312996905,1706573442646,-500.0,0.00039999,31]
[312996906,1706573442655,-500.0,0.00039999,31]
[312996907,1706573442664,-500.0,0.00039999,31]
[312996908,1706573442673,-500.0,0.00039999,31]
[312996909,1706573442685,-500.0,0.00039999,31]
[312996910,1706573442694,-500.0,0.00039999,31]
[312996911,1706573442704,-500.0,0.00039999,31]
[312996912,1706573442713,-500.0,0.00039999,31]
[312996913,1706573442722,-500.0,0.00039999,31]
[312996914,1706573442731,-500.0,0.00039999,31]
[312996915,1706573442741,-500.0,0.00039999,31]
[312996916,1706573442750,-500.0,0.00039999,31]
[312996917,1706573442760,-500.0,0.00039999,31]
[312996918,1706573442770,-500.0,0.00039999,31]
[312996919,1706573442779,-500.0,0.00039999,31]
[312996920,1706573442789,-500.0,0.00039999,31]
[312996921,1706573442799,-500.0,0.00039999,31]
[312996922,1706573442813,-500.0,0.00039999,31]
[312996923,1706573442824,-500.0,0.00039999,31]
[312996924,1706573442835,-500.0,0.00039999,31]
[312996925,1706573442845,-500.0,0.00039999,31]
[312996926,1706573442855,-500.0,0.00039999,31]
[312996927,1706573442864,-500.0,0.00039999,31]
[312996928,1706573442874,-500.0,0.00039999,31]
[312996929,1706573442883,-500.0,0.00039999,31]
[312996930,1706573442892,-500.0,0.00039999,31]
[312996931,1706573442901,-500.0,0.00039999,31]
[312996932,1706573442910,-500.0,0.00039999,31]
[312996933,1706573442920,-500.0,0.00039999,31]
[312996934,1706573442931,-500.0,0.00039999,31]
[312996935,1706573442940,-500.0,0.00039999,31]
[312996936,1706573442952,-500.0,0.00039999,31]
[312996937,1706573442962,-500.0,0.00039999,31]
[312996938,1706573442971,-500.0,0.00039999,31]
[312996939,1706573442980,-500.0,0.00039999,31]
[312996940,1706573442990,-500.0,0.00039999,31]
[312996941,1706573442999,-500.0,0.00039999,31]
[312996942,1706573443009,-500.0,0.00039999,31]
[312996943,1706573443020,-500.0,0.00039999,31]
[312996944,1706573443030,-500.0,0.00039999,31]
[312996945,1706573443041,-500.0,0.00039999,31]
[312996946,1706573443051,-497.85155534,0.00039999,31]
[312996947,1706573443060,-500.0,0.00039999,31]
[312996948,1706573443070,-500.0,0.00039999,31]
[312996949,1706573443080,-500.0,0.00039999,31]
[312996950,1706573443089,-500.0,0.00039999,31]
[312996951,1706573443099,-500.0,0.00039999,31]
[312996952,1706573443109,-500.0,0.00039999,31]
[312996953,1706573443118,-500.0,0.00039999,31]
[312996954,1706573443128,-450.0,0.00039999,31]
[312996955,1706573443138,-943.19820736,0.00039999,31]
[312996956,1706573443148,-943.19820736,0.00039999,31]
[312996957,1706573443161,-943.19820736,0.00039999,31]
[312996958,1706573443171,-943.19820736,0.00039999,31]
[312996959,1706573443183,-943.19820736,0.00039999,31]
[312996960,1706573443193,-943.19820736,0.00039999,31]
[312996961,1706573443203,-943.19820736,0.00039999,31]
[312996962,1706573443215,-943.19820736,0.00039999,31]
[312996963,1706573443225,-943.19820736,0.00039999,31]
[312996964,1706573443234,-943.19820736,0.00039999,31]
[312996965,1706573443243,-943.19820736,0.00039999,31]
[312996966,1706573443253,-943.19820736,0.00039999,31]
[312996967,1706573443262,-943.19820736,0.00039999,31]
[312996968,1706573443272,-943.19820736,0.00039999,31]
[312996969,1706573443282,-943.19820736,0.00039999,31]
[312996970,1706573443292,-943.19820736,0.00039999,31]
[312996971,1706573443301,-943.19820736,0.00039999,31]
[312996972,1706573443310,-943.19820736,0.00039999,31]
[312996973,1706573443321,-943.19820736,0.00039999,31]
[312996974,1706573443330,-943.19820736,0.00039999,31]
[312996975,1706573443339,-943.19820736,0.00039999,31]
[312996976,1706573443349,-943.19820736,0.00039999,31]
[312996977,1706573443358,-943.19820736,0.00039999,31]
[312996978,1706573443368,-943.19820736,0.00039999,31]
[312996979,1706573443379,-943.19820736,0.00039999,31]
[312996980,1706573443389,-943.19820736,0.00039999,31]
[312996981,1706573443398,-943.19820736,0.00039999,31]
[312996982,1706573443408,-943.19820736,0.00039999,31]
[312996983,1706573443417,-943.19820736,0.00039999,31]
[312996984,1706573443429,-854.26809067,0.00039999,31]
[312996985,1706573443438,-854.26809067,0.00039999,31]
[312996986,1706573443448,-854.26809067,0.00039999,31]
[312996987,1706573443457,-854.26809067,0.00039999,31]
[312996988,1706573443467,-854.26809067,0.00039999,31]
[312996990,1706573443476,-854.26809067,0.00039999,31]
[312996992,1706573443489,-854.26809067,0.00039999,31]
[312996994,1706573443499,-1086.74219428,0.0004,4]
[312996996,1706573443508,-155.0,0.0004,4]
[312996998,1706573443518,-2274.86979912,0.0004,4]
[312997000,1706573443527,-22076.99674252,0.0004,4]
[312997001,1706573443536,-713.30733836,0.0004,30]
[312997003,1706573443546,-155.0,0.0004,2]
[312997005,1706573443555,-2684.57209746,0.0004,4]
[312997007,1706573443565,-54392.52758537,0.0004,4]
[312997010,1706573443575,-188.00705383,0.0004,30]
[312997012,1706573443584,-166.94853957,0.0004,30]
[312997015,1706573443594,-172.27590147,0.0004,4]
[312997017,1706573443603,-180.5079485,0.0004,2]
[312997019,1706573443613,-5247.76305206,0.0004,2]
[312997021,1706573443622,-3200.0,0.0004,4]
[312997023,1706573443632,-1500.0,0.0004,36]
[312997024,1706573443641,-450.0,0.0004002,3]
[312997025,1706573443651,-151.19045389,0.00040026,6]
[312997026,1706573443660,-153.35,0.000402,4]
[312997027,1706573443670,-153.35,0.000402,4]
[312997028,1706573443680,-1467.15,0.000402,4]
[312997029,1706573443690,-1467.15,0.000402,4]
[312997030,1706573443700,-1467.15,0.000402,4]
[312997031,1706573443709,-1467.15,0.000402,4]
[312997032,1706573443718,-1467.15,0.000402,4]
[312997033,1706573443728,-1467.15,0.000402,4]
[312997034,1706573443737,-1467.15,0.000402,4]
[312997035,1706573443747,-1467.15,0.000402,4]
[312997036,1706573443757,-1467.15,0.000402,4]
[312997037,1706573443766,-1467.15,0.000402,4]
[312997038,1706573443776,-1467.15,0.000402,4]
[312997039,1706573443786,-1467.15,0.000402,4]
[312997040,1706573443796,-1467.15,0.000402,4]
[312997041,1706573443805,-1467.15,0.000402,4]
[312997042,1706573443814,-1467.15,0.000402,4]
[312997043,1706573443824,-1467.15,0.000402,4]
[312997044,1706573443833,-1467.15,0.000402,4]
[312997045,1706573443843,-1467.15,0.000402,4]
[312997046,1706573443852,-1467.15,0.000402,4]
[312997047,1706573443862,-1467.15,0.000402,4]
[312997048,1706573443871,-1454.05,0.00040216,2]
[312997049,1706573443881,-2809.48376728,0.00040268,5]
[312997050,1706573443890,-4899.92708701,0.0004037,4]
[312997051,1706573443900,-39745.29104531,0.00040373,19]
[312997052,1706573443910,-30783.09975058,0.00040373,18]
[312997053,1706573443919,-8519.91426641,0.00040373,18]
[312997054,1706573443929,-1591.54431001,0.0004039,2]
[312997055,1706573443939,-1389.57599553,0.00040391,2]
[312997056,1706573443949,-176.69,0.00040468,2]
[312997057,1706573443960,-1500.0,0.000405,36]
[312997058,1706573443970,-2937.56396032,0.0004076,14]
[312997059,1706573443980,-1023.16630104,0.0004079,13]
[312997060,1706573443990,-150.1,0.00040978,2]
[312997061,1706573444000,-541.88409101,0.00041,120]
[312997062,1706573444010,-1500.0,0.00041,36]
[312997063,1706573444019,-176.69,0.00041016,2]
[312997064,1706573444031,-165.79,0.00041091,2]
[312997065,1706573444041,-200.48724191,0.00041096,2]
[312997066,1706573444051,-150.0,0.00041096,2]
[312997067,1706573444060,-172.47,0.00041096,2]
[312997068,1706573444069,-151.19045389,0.00041343,11]
[312997069,1706573444078,-1000.0,0.000415,36]
[312997070,1706573444088,-1500.0,0.000415,36]
[312997071,1706573444097,-184.11348139,0.00041522,4]
[312997072,1706573444107,-176.69,0.00041564,2]
[312997073,1706573444116,-1424.0,0.0004179,2]
[312997074,1706573444125,-1035.0,0.0004179,2]
[312997075,1706573444134,-728.51083504,0.00041792,34]
[312997076,1706573444145,-1275.16272656,0.00041801,31]
[312997077,1706573444154,-677.22005322,0.00041801,30]
[312997078,1706573444172,-2150.34397498,0.00041801,30]
[312997079,1706573444185,-257.64023313,0.00041801,30]
[312997080,1706573444195,-280.37854432,0.00041801,30]
[312997081,1706573444205,-25612.0371,0.00041801,7]
[312997082,1706573444214,-7438.97285747,0.00041801,2]
[312997083,1706573444223,-1729.33494002,0.00041801,7]
[312997084,1706573444233,-3330.4440539,0.00041801,2]
[312997085,1706573444243,-6602.92016301,0.00041801,8]
[312997086,1706573444252,-155.0,0.00041801,120]
[312997087,1706573444261,-178.88637905,0.00041801,120]
[312997088,1706573444270,-1401.06885484,0.00041801,30]
[312997089,1706573444280,-3000.0,0.00041801,4]
[312997090,1706573444290,-2200.91601841,0.00041801,30]
[312997091,1706573444299,-2019.73620218,0.00041801,120]
[312997092,1706573444309,-2393.58778188,0.00041801,30]
[312997093,1706573444318,-169.58775303,0.00041801,120]
[312997094,1706573444328,-12092.45548163,0.00041801,2]
[312997095,1706573444338,-452.47022897,0.00041801,30]
[312997096,1706573444349,-302.38584451,0.00041801,30]
[312997097,1706573444359,-207.60028008,0.00041801,120]
[312997098,1706573444368,-283.97440889,0.00041801,15]
[312997099,1706573444377,-9800.0,0.00041801,60]
[312997100,1706573444387,-382.91668062,0.00041801,2]
[312997101,1706573444396,-1741.40993,0.00041801,30]
[312997102,1706573444405,-306.682723,0.00041801,30]
[312997103,1706573444415,-2979.29132282,0.00041801,30]
[312997104,1706573444424,-222.9215131,0.00041801,30]
[312997105,1706573444435,-2809.48376728,0.00041847,5]
[312997106,1706573444445,-90000.0,0.000419,30]
[312997107,1706573444455,-7999.99,0.00041979,30]
[312997108,1706573444466,-1192.89,0.00041979,2]
[312997109,1706573444475,-162.51535261,0.00042,2]
[312997110,1706573444485,-474.07011527,0.00042,4]
[312997111,1706573444494,-489.8598969,0.00042,4]
[312997112,1706573444504,-200.0,0.00042,2]
[312997113,1706573444513,-176.69,0.00042112,2]
[312997114,1706573444522,-150.0,0.00042177,2]
[312997115,1706573444531,-152.46,0.000422,7]
[312997116,1706573444542,-1454.05,0.0004248,2]
[312997117,1706573444551,-5446.46652624,0.00042533,4]
[312997118,1706573444561,-151.19045389,0.00042661,16]
[312997119,1706573444570,-769.34124105,0.00042888,32]
[312997120,1706573444579,-956.06993482,0.00042891,11]
[312997121,1706573444588,-838.77043979,0.00043,7]
[312997122,1706573444598,-150.0,0.00043259,2]
[312997123,1706573444607,-2937.56396032,0.00043311,18]
[312997124,1706573444616,-2809.48376728,0.00043426,5]
[312997125,1706573444626,-489.0,0.0004369,2]
[312997126,1706573444636,-447.86229267,0.000438,30]
[312997127,1706573444645,-8000.0,0.000438,2]
[312997128,1706573444655,-644.14,0.00043836,15]
[312997129,1706573444664,-151.19045389,0.00043978,21]
[312997130,1706573444674,-1060.73083128,0.00044,31]
[312997131,1706573444684,-186.71634084,0.00044,32]
[312997132,1706573444694,-200.0,0.000441,2]
[312997133,1706573444703,-150.0,0.0004434,2]
[312997134,1706573444713,-649.0,0.0004469,2]
[312997135,1706573444723,-471.0,0.0004469,2]
[312997136,1706573444732,-1454.05,0.00044744,2]
[312997137,1706573444742,-9169.96505853,0.0004475,2]
[312997138,1706573444751,-153.35,0.000449,5]
[312997139,1706573444760,-153.35,0.000449,5]
[312997140,1706573444770,-1467.15,0.000449,5]
[312997141,1706573444981,-1467.15,0.000449,5]
[312997142,1706573445015,-1467.15,0.000449,5]
[312997143,1706573445025,-1467.15,0.000449,5]
[312997144,1706573445037,-1467.15,0.000449,5]
[312997145,1706573445047,-1467.15,0.000449,5]
[312997146,1706573445057,-1467.15,0.000449,5]
[312997147,1706573445067,-1467.15,0.000449,5]
[312997148,1706573445076,-1467.15,0.000449,5]
[312997149,1706573445086,-1467.15,0.000449,5]
[312997150,1706573445096,-1467.15,0.000449,5]
[312997151,1706573445106,-1467.15,0.000449,5]
[312997152,1706573445116,-1467.15,0.000449,5]
[312997153,1706573445126,-1467.15,0.000449,5]
[312997154,1706573445135,-1467.15,0.000449,5]
[312997155,1706573445145,-1467.15,0.000449,5]
[312997156,1706573445155,-1467.15,0.000449,5]
[312997157,1706573445165,-1467.15,0.000449,5]
[312997158,1706573445175,-1467.15,0.000449,5]
[312997159,1706573445189,-1467.15,0.000449,5]
[312997160,1706573445200,-1000.0,0.00044907,2]
[312997161,1706573445210,-472.82964146,0.0004498,3]
[312997162,1706573445220,-155.0,0.00045,2]
[312997163,1706573445230,-316.31305984,0.00045,4]
[312997164,1706573445240,-377920.89129304,0.00045,4]
[312997165,1706573445250,-743.78204118,0.00045,30]
[312997166,1706573445260,-944.80741323,0.00045,30]
[312997167,1706573445270,-446.02947764,0.00045,4]
[312997168,1706573445279,-433.0,0.00045,2]
[312997169,1706573445289,-4402.0,0.00045,2]
[312997170,1706573445298,-2809.48376728,0.00045005,5]
[312997171,1706573445308,-450.0,0.0004502,5]
[312997172,1706573445317,-488.0,0.0004519,2]
[312997173,1706573445327,-8000.0,0.000452,2]
[312997174,1706573445337,-151.19045389,0.00045296,26]
[312997175,1706573445347,-150.0,0.00045422,2]
[312997176,1706573445357,-1564.22192432,0.00045787,4]
[312997177,1706573445366,-5446.46652624,0.00045822,7]
[312997178,1706573445376,-2937.56396032,0.00045862,21]
[312997179,1706573445386,-1704.0,0.0004599,2]
[312997180,1706573445395,-188.12491114,0.00046,120]
[312997181,1706573445405,-168.8832864,0.00046,45]
[312997182,1706573445415,-150.0,0.00046078,6]
[312997183,1706573445424,-150.0,0.00046078,6]
[312997185,1706573445436,-3523.714,0.00046079,2]
[312997186,1706573445446,-2279.0,0.00046079,2]
[312997187,1706573445456,-1688.542,0.00046079,2]
[312997188,1706573445466,-1862.162,0.00046079,2]
[312997189,1706573445476,-4454.479,0.00046079,2]
[312997190,1706573445486,-19726.0,0.00046079,2]
[312997191,1706573445496,-2913.0,0.00046079,2]
[312997192,1706573445506,-1032.0,0.00046079,2]
[312997193,1706573445516,-199.547,0.00046079,2]
[312997194,1706573445526,-200.0,0.000462,2]
[312997195,1706573445536,-201.49838389,0.00046293,4]
[312997196,1706573445546,-728.51083504,0.0004634,41]
[312997197,1706573445556,-150.0,0.00046503,2]